lending/lending_fUSD_20240202
["ID","MTS","AMOUNT","RATE_DAILY","PERIOD"]
[313165971,1706853032077,-3400.0,0.00022998,2]
[313165972,1706853037635,-5699.62076788,0.00022998,2]
[313165973,1706853037646,-2241.19370857,0.00022998,2]
[313165974,1706853037655,-3307.40270442,0.00022999,2]
[313165975,1706853037666,-4321.82743498,0.00023,2]
[313165976,1706853037812,-5628.37594026,0.00023,2]
[313165977,1706853037922,-4447.81020263,0.00023,2]
[313165978,1706853037979,-429.64,0.00023,2]
[313166264,1706853040822,-1267.80842534,0.00022999,2]
[313166267,1706853040987,-478.22499076,0.00022999,2]
[313166268,1706853040999,-1561.36928832,0.00022999,2]
[313166269,1706853041008,-2536.08468414,0.00023,2]
[313166270,1706853041043,-637.26935831,0.00023,2]
[313166271,1706853041054,-998.486475,0.00023,2]
[313166280,1706853042688,-558.31620417,0.00022998,2]
[313166281,1706853042698,-1785.27665698,0.00023,2]
[313166282,1706853042709,-1521.56675804,0.00023,2]
[313166283,1706853042721,-2461.17348623,0.00023,2]
[313166284,1706853042794,-1300.1326,0.00023,2]
[313166285,1706853042806,-571.59601697,0.00023,2]
[313166286,1706853044140,-2025.22,0.00023,2]
[313166295,1706853045700,-3307.40270442,0.00022999,2]
[313166296,1706853045710,-190195.96828966,0.00023,2]
[313166297,1706853045864,-505.85696838,0.00022999,2]
[313166298,1706853045920,-647.88662886,0.00022999,2]
[313166299,1706853045978,-2859.71598182,0.00022999,2]
[313166310,1706853073308,1694.34235594,0.00022078,2]
[313166311,1706853080170,630.63818155,0.00022078,2]
[313166312,1706853157322,1363.96230154,0.00022386,2]
[313166313,1706853157631,1363.96230154,0.00022493,2]
[313166314,1706853193797,800.0,0.00022313,2]
[313166324,1706853795823,800.0,0.00022135,2]
[313166325,1706853843246,153.33,0.00020971,2]
[313166355,1706854231824,-358.57010319,0.00022566,2]
[313166356,1706854231833,-1541.42989681,0.00022567,2]
[313166357,1706854231877,-331.62881422,0.00022567,2]
[313166358,1706854232002,-2012.86081985,0.00022567,2]
[313166359,1706854232015,-58.41169105,0.00022568,2]
[313166373,1706854237996,-1733.77830895,0.00022568,2]
[313166374,1706854238006,-200.0,0.00022568,2]
[313166375,1706854238018,-1050.0,0.000226,2]
[313166376,1706854238028,-178.34907559,0.00022698,2]
[313166377,1706854238037,-150.0,0.00022702,2]
[313166378,1706854238202,-177.09,0.00022748,10]
[313166379,1706854238211,-178.34907559,0.00022765,2]
[313166380,1706854238221,-1310.43410728,0.00022798,2]
[313166381,1706854238234,-3318.90678262,0.00022798,2]
[313166382,1706854238244,-500.0,0.000228,2]
[313166383,1706854238253,-8238.1081,0.000228,2]
[313166384,1706854238263,-499.99,0.000228,2]
[313166385,1706854238273,-725.96,0.000228,2]
[313166386,1706854238282,-178.34907559,0.00022833,2]
[313166387,1706854238291,-250.0,0.00022846,2]
[313166388,1706854238301,-32628.02780857,0.000229,2]
[313166389,1706854238313,-60489.38488394,0.000229,2]
[313166390,1706854238324,-4142.1691104,0.000229,2]
[313166391,1706854238336,-258.61400001,0.000229,2]
[313166392,1706854238348,-574.98736815,0.000229,2]
[313166393,1706854238363,-648.5229323,0.000229,2]
[313166394,1706854238375,-3749.26115537,0.000229,2]
[313166395,1706854238387,-784.20550947,0.000229,2]
[313166396,1706854238399,-627.74580422,0.000229,2]
[313166403,1706854240997,-838.32628978,0.000229,2]
[313166404,1706854241043,-4735.96203405,0.000229,2]
[313166405,1706854241097,-322.25706152,0.000229,2]
[313166406,1706854241109,-1079.8677909,0.000229,2]
[313166407,1706854241120,-452.25615153,0.000229,2]
[313166408,1706854241131,-359.45574608,0.000229,2]
[313166409,1706854241152,-251.58,0.000229,2]
[313166410,1706854241262,-663.39137734,0.000229,2]
[313166416,1706854242920,-27140.92017637,0.000229,2]
[313166417,1706854242929,-178.34907559,0.000229,2]
[313166418,1706854242939,-157.28459607,0.000229,2]
[313166419,1706854242948,-178.27520366,0.000229,2]
[313166420,1706854242957,-249.6351878,0.000229,2]
[313166421,1706854242967,-180.90708616,0.000229,6]
[313166422,1706854242977,-189.18,0.00022966,2]
[313166423,1706854242986,-2775.64633302,0.00022999,2]
[313166424,1706854242996,-22828.8126937,0.00023,2]
[313166425,1706854243008,-1520.00485679,0.00023,2]
[313166426,1706854243022,-72561.87014817,0.00023,2]
[313166427,1706854243033,-878.49394085,0.00023,2]
[313166428,1706854243044,-6619.69553969,0.00023,2]
[313166430,1706854243423,-701.33067573,0.00023,2]
[313166432,1706854243435,-2812.97751467,0.00023,2]
[313166434,1706854243446,-3075.10550869,0.00023,2]
[313166436,1706854243457,-2563.57660279,0.00023,2]
[313166437,1706854243477,-359.73856219,0.00023,2]
[313166438,1706854243532,-672.27438761,0.00023,2]
[313166440,1706854245995,-234.06767586,0.00022899,2]
[313166441,1706854246005,-94.73232434,0.00023,2]
[313166442,1706854246043,-190195.96828966,0.00023,2]
[313166443,1706854246054,-626.86484445,0.00023,2]
[313166453,1706854413807,213.0,0.00022,2]
[313166454,1706854513223,257.27,0.00022,2]
[313166458,1706854776113,153.33,0.00021185,2]
[313166462,1706855081281,2330.75373769,0.00021848,2]
[313166463,1706855095640,521.71785662,0.00022078,2]
[313166464,1706855188876,153.33,0.00020787,2]
[313166477,1706855431983,-157.65,0.00022636,2]
[313166479,1706855431992,-2534.41977532,0.00022879,2]
[313166481,1706855432004,-1351.49975556,0.00022879,2]
[313166483,1706855432013,-1284.93497279,0.0002288,2]
[313166484,1706855432194,-440.50048215,0.0002288,2]
[313166485,1706855432206,-61.75273239,0.0002288,2]
[313166486,1706855432215,-152.01,0.0002288,2]
[313166487,1706855432225,-50.78726761,0.00022882,2]
[313166488,1706855432249,-100.79273239,0.00022882,2]
[313166489,1706855432259,-300.0,0.00022886,2]
[313166490,1706855432268,-152.44,0.00022887,2]
[313166491,1706855432277,-967.81717445,0.00022887,2]
[313166492,1706855432288,-4032.18282555,0.00022887,2]
[313166493,1706855432297,-151.97,0.00022889,2]
[313166494,1706855432307,-152.96,0.00022894,2]
[313166495,1706855432316,-18363.88717445,0.000229,2]
[313166509,1706855438038,-833.50544486,0.000229,2]
[313166510,1706855438103,-1683.99604074,0.000229,2]
[313166511,1706855438115,-402.42761268,0.000229,2]
[313166512,1706855438128,-961.40654544,0.000229,2]
[313166513,1706855438149,-3410.52144188,0.000229,2]
[313166514,1706855438159,-512.91342542,0.000229,2]
[313166515,1706855438206,-2947.86657458,0.000229,2]
[313166516,1706855438216,-407.7,0.000229,2]
[313166517,1706855438226,-499.99,0.000229,2]
[313166518,1706855438235,-430.30953945,0.000229,2]
[313166519,1706855438245,-1977.7268383,0.00022998,2]
[313166520,1706855438255,-155.25548457,0.00022998,2]
[313166521,1706855438265,-1850.43088868,0.00022999,2]
[313166522,1706855438276,-19999.99999999,0.00023,2]
[313166523,1706855438286,-76259.27310089,0.00023,2]
[313166524,1706855438420,-523.73272136,0.00023,2]
[313166738,1706855440655,-329.0680861,0.00023,2]
[313166741,1706855440668,-300.03099624,0.00023,2]
[313166743,1706855440680,-2998.58380616,0.00023,2]
[313166753,1706855440763,-355.12996767,0.00023,2]
[313166755,1706855440774,-2372.74405801,0.00023,2]
[313166757,1706855440786,-521.71785662,0.00023,2]
[313166762,1706855440818,-1313.70377315,0.00023,2]
[313166839,1706855441512,-360.21,0.00023,2]
[313166841,1706855441524,-856.53874824,0.00023,2]
[313166844,1706855441537,-763.2575711,0.00023,2]
[313166846,1706855441550,-309.04679903,0.00023,2]
[313166849,1706855441571,-2681.98083323,0.00023,2]
[313166851,1706855441583,-4905.77646188,0.00023,2]
[313166853,1706855441594,-668.16681472,0.00023,2]
[313166856,1706855441605,-286.83677164,0.00023,2]
[313166858,1706855441617,-1466.08782232,0.00023,2]
[313166860,1706855441628,-2014.53425837,0.00023,2]
[313166862,1706855441640,-469.50000035,0.00023,2]
[313167026,1706855443198,-789.96808467,0.00022999,2]
[313167028,1706855443210,-443.65250778,0.00022999,2]
[313167030,1706855443219,-3904.32749222,0.00023,2]
[313167070,1706855443835,-1161.22070858,0.00023,2]
[313167071,1706855443894,-330.23400921,0.00023,2]
[313167073,1706855443955,-894.95999999,0.00023,2]
[313167075,1706855443966,-908.05826268,0.00023,2]
[313167279,1706855446059,-3664.36405818,0.00023,2]
[313167280,1706855446072,-3700.52867238,0.00023,2]
[313167281,1706855446165,-18738.24877323,0.00023,2]
[313167282,1706855446178,-4613.65668647,0.00023,2]
[313167283,1706855446189,-1249.35297561,0.00023,2]
[313167284,1706855446223,-1089.06822807,0.00023,2]
[313167285,1706855446234,-190195.96828966,0.00023,2]
[313167286,1706855446246,-568.96769654,0.00023,2]
[313167287,1706855446282,-2709.83134783,0.00023,2]
[313167288,1706855446293,-1102.74167354,0.00023,2]
[313167289,1706855446336,-4000.32648503,0.00023,2]
[313167292,1706855577993,-2024.56407559,0.00022899,2]
[313167293,1706855578017,-266.32427519,0.000229,2]
[313167294,1706855578041,-1417.1779,0.000229,2]
[313167295,1706855578065,-16355.6778,0.000229,2]
[313167296,1706855578090,-500.0,0.000229,2]
[313167311,1706856632184,-671.04925394,0.00022899,2]
[313167312,1706856632196,-1012.23348766,0.00022899,2]
[313167313,1706856632207,-341.28133399,0.00022899,2]
[313167314,1706856632216,-2931.07930989,0.000229,2]
[313167315,1706856632242,-310.0,0.000229,2]
[313167316,1706856634535,-773.87889257,0.000229,2]
[313167317,1706856634595,-643.36390765,0.000229,2]
[313167318,1706856634606,-366.91487999,0.000229,2]
[313167319,1706856634654,-10519.42651032,0.000229,2]
[313167334,1706856638363,-35313.17326557,0.000229,2]
[313167335,1706856638421,-30316.54363401,0.000229,2]
[313167336,1706856638432,-861.0987461,0.000229,4]
[313167337,1706856638442,-500.0,0.00022998,2]
[313167338,1706856638454,-358.89301461,0.00022998,2]
[313167339,1706856638464,-1233.62059246,0.00022999,2]
[313167340,1706856638474,-59736.77217776,0.00023,2]
[313167341,1706856638487,-404.64145571,0.00023,2]
[313167358,1706856641375,-1900.6,0.00023,2]
[313167363,1706856643566,-616.81029623,0.00022999,2]
[313167364,1706856643577,-240.10617457,0.00023,2]
[313167365,1706856643589,-262.90759,0.00023,2]
[313167368,1706856646421,-308.40514811,0.00022999,2]
[313167369,1706856646431,-70042.22252289,0.00023,2]
[313167370,1706856646440,-119845.34061866,0.00023,2]
[313167563,1706856661284,-2024.56407559,0.00022999,2]
[313167564,1706856661307,-154.20257406,0.00022999,2]
[313167565,1706856714596,-10277.2849,0.000229,2]
[313167566,1706856714619,-1000.0,0.000229,2]
[313167567,1706856722924,-2024.56407559,0.00022998,2]
[313167568,1706856740194,-254.0257405,0.00022999,2]
[313167571,1706856741936,-45.9742595,0.00022999,2]
[313167572,1706856741960,-150.0,0.00022999,2]
[313167573,1706856741988,-58.051481,0.00022999,2]
[313167575,1706857427541,-639.32590679,0.00022537,2]
[313167576,1706857487484,150.0000045,0.0002251,2]
[313167577,1706857637620,150.0,0.00022494,2]
[313167578,1706857653840,213.0,0.000225,2]
[313167597,1706857832418,-226.59,0.00022572,2]
[313167598,1706857832428,-2024.56407559,0.00022598,2]
[313167599,1706857832439,-2557.06,0.00022599,2]
[313167600,1706857832449,-500.0,0.000226,3]
[313167601,1706857832460,-485.13,0.00022692,2]
[313167602,1706857832470,-250.73592441,0.00022783,2]
[313167603,1706857832483,-749.26407559,0.00022783,2]
[313167604,1706857832493,-165.67169307,0.000228,2]
[313167605,1706857832503,-470.23408852,0.00022898,2]
[313167606,1706857832513,-188.84962944,0.00022899,4]
[313167607,1706857832526,-34.67672421,0.00022899,4]
[313167608,1706857832535,-364.74675334,0.000229,2]
[313167609,1706857832547,-631.29703583,0.000229,2]
[313167610,1706857832558,-1775.04369765,0.000229,2]
[313167619,1706857838490,-72693.23228259,0.000229,2]
[313167620,1706857838503,-1993.90373059,0.000229,2]
[313167621,1706857838512,-2270.09853061,0.000229,2]
[313167622,1706857838566,-609.47680672,0.000229,2]
[313167623,1706857838623,-3041.0993593,0.000229,2]
[313167624,1706857838680,-3583.50960337,0.000229,2]
[313167625,1706857838690,-15380.36714109,0.000229,2]
[313167648,1706857841056,-273.73735891,0.000229,2]
[313167649,1706857841065,-591.711872,0.000229,2]
[313167650,1706857841077,-28.428128,0.000229,2]
[313167651,1706857841085,-151.42752341,0.000229,6]
[313167652,1706857841094,-143.02088124,0.00022941,2]
[313167653,1706857841105,-280.69400187,0.00022941,2]
[313167654,1706857841116,-674.06352062,0.00022941,2]
[313167655,1706857841127,-902.22159627,0.00022941,2]
[313167656,1706857841137,-369.795931,0.00022996,2]
[313167657,1706857841146,-7299.7997814,0.00022996,2]
[313167658,1706857841638,-948.239999,0.00022996,2]
[313167659,1706857841805,-301.92261199,0.00022996,2]
[313167695,1706857843591,-4317.87146283,0.00022996,2]
[313167696,1706857843602,-15493.90900226,0.00022996,2]
[313167697,1706857848996,-2024.56407559,0.00022995,2]
[313167698,1706857849006,-39725.19543942,0.00022996,2]
[313167699,1706857849015,-1017.61876,0.00022996,2]
[313167700,1706857849024,-5809.245958,0.00022996,2]
[313167701,1706857849034,-154.20257405,0.00022999,2]
[313167702,1706857849043,-1857.7043671,0.00022999,2]
[313167703,1706857849052,-139299.03196739,0.00023,2]
[313167712,1706857863987,206.0,0.000225,2]
[313167713,1706857881507,24945.27128499,0.000231,120]
[313167720,1706858544449,14029.37469259,0.00022,2]
[313167721,1706858587156,404.74039498,0.0002134,2]
[313167722,1706858589796,362.00852423,0.00022,2]
[313167723,1706858595211,268.32724543,0.00022,2]
[313167724,1706858597571,494.07788319,0.00022,2]
[313167725,1706858606190,2232.2179096,0.00022,2]
[313167726,1706858610620,283.58907863,0.00022,2]
[313167727,1706858612085,1029.59993686,0.00022,2]
[313167728,1706858616043,735.5792147,0.00021,2]
[313167729,1706858616073,2197.7440987,0.0002178,2]
[313167730,1706858619813,260.9149056,0.00022,2]
[313167731,1706858620086,155.14082571,0.000198,2]
[313167732,1706858621090,162.10481077,0.00020698,2]
[313167733,1706858622591,285.05375891,0.00022,2]
[313167734,1706858623609,8112.77428237,0.00022,2]
[313167735,1706858624090,1131.20769499,0.00022,2]
[313167736,1706858634255,808.98550887,0.00022,2]
[313167737,1706858637842,261.65996166,0.00022,2]
[313167738,1706858642070,2772.41523268,0.0002189,2]
[313167739,1706858642829,963.23214242,0.00020698,2]
[313167740,1706858647146,403.28512965,0.0002134,2]
[313167741,1706858651346,849.0128464,0.00022,2]
[313167742,1706858652254,813.97212994,0.00022,2]
[313167743,1706858653238,500.0,0.00022,2]
[313167744,1706858657796,283.86850981,0.00022,2]
[313167745,1706858658202,1978.968142,0.00022428,2]
[313167746,1706858660522,381.65838754,0.00022,2]
[313167750,1706858662791,236.04621108,0.00022,2]
[313167751,1706858663747,3135.42546706,0.00021848,2]
[313167752,1706858668722,150.0,0.0002248,2]
[313167753,1706858670269,812.0349923,0.00022,2]
[313167754,1706858671234,500.0,0.00022,2]
[313167755,1706858676578,165.63075316,0.00022,2]
[313167756,1706858681992,731.46257561,0.00021,2]
[313167757,1706858682930,184.1966631,0.00022,2]
[313167758,1706858684509,155.0,0.00022,2]
[313167759,1706858685747,1177.44740875,0.00021848,2]
[313167760,1706858687229,399.09598157,0.00021848,2]
[313167761,1706858692579,155.26213444,0.00021848,2]
[313167762,1706858698964,162.10481077,0.00020698,2]
[313167763,1706858700497,156.96771892,0.00021848,2]
[313167778,1706859037721,-156.36987499,0.00022768,2]
[313167779,1706859037733,-268.51321039,0.00022769,2]
[313167780,1706859037746,-1756.0508652,0.00022769,2]
[313167781,1706859037756,-596.0,0.0002277,2]
[313167782,1706859037766,-1985.96903578,0.00022798,2]
[313167784,1706859040228,-745.7961023,0.00022798,2]
[313167785,1706859040430,-277.24778743,0.00022798,2]
[313167786,1706859040445,-1293.85122542,0.00022798,2]
[313167787,1706859040457,-333.54442742,0.00022798,2]
[313167788,1706859041043,-8417.09310297,0.00022798,2]
[313167789,1706859041053,-479.01122374,0.000228,2]
[313167790,1706859041063,-3031.51584784,0.0002288,2]
[313167791,1706859041073,-2750.1246271,0.000229,2]
[313167792,1706859041083,-2430.56058639,0.00022998,2]
[313167793,1706859041093,-2595.11032238,0.00022998,2]
[313167795,1706859041103,-231.01969335,0.00022998,2]
[313167797,1706859041112,-1081.45031659,0.00022998,2]
[313167799,1706859041121,-2156.30878877,0.00022998,2]
[313167800,1706859041130,-1888.90360756,0.00022998,2]
[313167801,1706859041139,-2349.06787919,0.00022998,2]
[313167802,1706859041148,-281.67144546,0.00022998,2]
[313167803,1706859041158,-221.43112762,0.00022998,2]
[313167805,1706859041167,-155.46160434,0.00022998,2]
[313167806,1706859041176,-155.98990218,0.00022998,2]
[313167807,1706859041185,-364.82009012,0.00022998,2]
[313167808,1706859041195,-292.40717197,0.00022998,2]
[313167809,1706859041204,-4299.25140169,0.00022999,2]
[313167810,1706859041214,-205559.59307937,0.00023,2]
[313167811,1706859042129,-25814.2739648,0.00023,2]
[313167823,1706859042609,-3384.87796955,0.00023,2]
[313167825,1706859042621,-16284.58963616,0.00023,2]
[313167827,1706859042633,-316.42540887,0.00023,2]
[313167833,1706859042781,-3915.39565918,0.00023,2]
[313167834,1706859042838,-457.14295137,0.00023,2]
[313167835,1706859042851,-111588.78367018,0.00023,2]
[313167845,1706859045677,-763.70530403,0.00023,2]
[313167846,1706859045689,-43633.38352526,0.00023,2]
[313167847,1706859045733,-2469.52919998,0.00023,2]
[313167848,1706859045790,-512.80728514,0.00023,2]
[313167849,1706859045802,-2615.18924878,0.00023,2]
[313167850,1706859045846,-139299.03196739,0.00023,2]
[313167854,1706859046043,-160705.48757951,0.00023,2]
[313167855,1706859046055,-12672.89512796,0.00023,2]
[313167857,1706859068181,2524.35656193,0.00022079,2]
[313167858,1706859105956,-857.95255903,0.000229,2]
[313167859,1706859105975,-2322.8145,0.000229,2]
[313167860,1706859105994,-500.0,0.000229,2]
[313167861,1706859106014,-1555.6988696,0.00022997,2]
[313167862,1706859106033,-307.61888144,0.00022998,2]
[313167863,1706859106051,-400.0,0.00022998,2]
[313167864,1706859106071,-1117.33300328,0.00022998,2]
[313167865,1706859106090,-2024.56407559,0.00022999,2]
[313167866,1706859106109,-55914.01811106,0.00022999,2]
[313167867,1706859197539,177.3,0.00016712,2]
[313167868,1706859333208,276.15,0.00022414,2]
[313167869,1706859366064,3933.1,0.00022414,2]
[313167873,1706859496950,11289.63150828,0.00022402,2]
[313167874,1706859496980,8577.9999955,0.00022402,2]
[313167875,1706859497011,4032.36849622,0.00022402,2]
[313167876,1706859508267,154.85,0.00022136,2]
[313167877,1706859508482,154.85,0.00022328,2]
[313167878,1706859577158,4482.87,0.00022133,2]
[313167879,1706859588419,443.51,0.00022133,2]
[313167880,1706859620314,2705.0,0.0002213,2]
[313167881,1706859632813,154.64,0.00020213,2]
[313167882,1706859644337,167.97,0.0002213,2]
[313167883,1706859656044,176.85,0.00022,2]
[313167884,1706859700335,200.0,0.00022062,2]
[313167888,1706859755856,2000.0,0.00022078,2]
[313167889,1706859795052,800.0,0.00021918,2]
[313167890,1706859808955,1366.63,0.00022261,2]
[313167891,1706859836987,1350.15,0.00022267,2]
[313167892,1706860000760,1047.48,0.00022134,2]
[313167896,1706860115229,369.59,0.0002224,2]
[313167897,1706860121485,840.0,0.0002228,2]
[313167898,1706860132852,170.68996443,0.00022448,2]
[313167899,1706860179689,154.64,0.00020406,2]
[313167900,1706860209387,161.08,0.00022235,2]
[313167908,1706860231944,-154.85,0.00022511,2]
[313167909,1706860231954,-97.26426329,0.00022519,2]
[313167919,1706860237780,-977.46048853,0.00022519,2]
[313167920,1706860237838,-419.6410628,0.00022519,2]
[313167921,1706860237948,-530.19826097,0.00022519,2]
[313167922,1706860237960,-1000.0,0.0002252,23]
[313167923,1706860237973,-352.62,0.00022548,2]
[313167924,1706860237985,-170.68996443,0.00022674,2]
[313167925,1706860237998,-154.85,0.00022804,2]
[313167926,1706860238012,-12769.84,0.00022899,2]
[313167927,1706860238024,-2322.8145,0.00022899,2]
[313167928,1706860238035,-500.0,0.00022899,2]
[313167929,1706860238047,-515.28,0.00022899,2]
[313167930,1706860238059,-2033.85,0.00022899,2]
[313167931,1706860238070,-688.94,0.00022899,2]
[313167932,1706860238082,-5667.92,0.000229,2]
[313167933,1706860238092,-154.97617789,0.000229,2]
[313167934,1706860238102,-2716.96317021,0.000229,2]
[313167935,1706860238114,-170.68996443,0.000229,2]
[313167936,1706860238125,-196.30035169,0.000229,4]
[313167937,1706860238137,-906.4068,0.00022986,10]
[313167938,1706860238147,-499.99,0.00022987,2]
[313167939,1706860238158,-6679.88111164,0.00022987,2]
[313167941,1706860238171,-307.61888144,0.00022997,2]
[313167944,1706860238184,-1555.6988696,0.00022997,2]
[313167945,1706860238195,-400.0,0.00022997,2]
[313167946,1706860238205,-1117.33300328,0.00022997,2]
[313167947,1706860238217,-285.40187788,0.00022997,2]
[313167948,1706860238228,-200.33730468,0.00022997,2]
[313167949,1706860238240,-3338.02886732,0.00022997,2]
[313167950,1706860238252,-1602.01246121,0.00022998,2]
[313167951,1706860238263,-11860.72725441,0.00022998,2]
[313167952,1706860238274,-56977.39308894,0.00022999,2]
[313167953,1706860238306,-3395.54794444,0.00022999,2]
[313167965,1706860240919,-790.91438431,0.000229,2]
[313167966,1706860240934,-206151.73571983,0.00022999,2]
[313167967,1706860240945,-148948.58828417,0.00023,2]
[313167968,1706860240974,-500.0,0.00023,2]
[313167969,1706860240988,-248478.90973405,0.00023,2]
[313167970,1706860241006,-458.21805373,0.00023,2]
[313167971,1706860241034,-676.49011527,0.00023,2]
[313167972,1706860241049,-7172.76060611,0.00023,2]
[313167973,1706860241063,-2828.01795911,0.00023,2]
[313167974,1706860241092,-410.44886537,0.00023,2]
[313167975,1706860241106,-1003.471,0.00023,2]
[313167976,1706860241118,-470.2,0.00023,2]
[313167977,1706860241130,-548.1,0.00023,2]
[313167978,1706860241208,-841.26856694,0.00023,2]
[313167979,1706860241226,-2203.4,0.00023,2]
[313167980,1706860241239,-1048.582763,0.00023,2]
[313167981,1706860241253,-500.4773228,0.00023,2]
[313167983,1706860241265,-2710.38515923,0.00023,2]
[313167985,1706860241277,-347.96609508,0.00023,2]
[313168001,1706860243847,-344.0669848,0.00023,2]
[313168002,1706860243955,-2918.24313867,0.00023,2]
[313168017,1706860246090,-139299.03196739,0.00023,2]
[313168023,1706860956575,355.92,0.00022426,2]
[313168024,1706861002717,672.0,0.00022286,2]
[313168025,1706861011726,154.99,0.00020368,2]
[313168026,1706861044691,2475.70872217,0.00021847,7]
[313168027,1706861091000,2000.0,0.00022315,2]
[313168028,1706861192802,157.7129927,0.000225,2]
[313168046,1706861432018,-2024.56407559,0.00022559,2]
[313168047,1706861432028,-997.1017002,0.0002256,2]
[313168048,1706861432037,-154.85,0.00022561,2]
[313168049,1706861432047,-167.94,0.0002261,2]
[313168050,1706861432056,-709.89,0.00022768,2]
[313168051,1706861432065,-716.05,0.00022782,2]
[313168052,1706861432075,-724.67,0.00022822,2]
[313168053,1706861432088,-735.1,0.00022871,2]
[313168054,1706861432098,-150.0,0.00022892,2]
[313168055,1706861432107,-727.38,0.00022893,2]
[313168056,1706861432117,-733.45,0.00022893,2]
[313168057,1706861432127,-733.03,0.00022893,2]
[313168058,1706861432137,-5114.27809301,0.00022895,2]
[313168059,1706861439123,-726.28835269,0.00022895,2]
[313168060,1706861439135,-741.27723955,0.00022895,2]
[313168061,1706861439146,-420.8888349,0.00022895,2]
[313168062,1706861439232,-1109.2339416,0.00022895,2]
[313168078,1706861441265,-1876.84353825,0.00022895,2]
[313168079,1706861441275,-728.38,0.00022895,2]
[313168080,1706861441285,-716.64,0.00022895,2]
[313168081,1706861441294,-713.31,0.00022895,2]
[313168082,1706861441303,-734.75,0.00022895,2]
[313168083,1706861441313,-499.99,0.00022896,2]
[313168084,1706861441322,-720.78,0.00022896,2]
[313168085,1706861441333,-726.73,0.00022896,2]
[313168086,1706861441342,-722.67,0.00022896,2]
[313168087,1706861441352,-714.19,0.00022897,2]
[313168088,1706861441364,-713.7,0.00022897,2]
[313168089,1706861441374,-735.21,0.00022897,2]
[313168090,1706861441387,-713.58,0.00022898,2]
[313168091,1706861441397,-713.96,0.00022898,2]
[313168092,1706861441406,-717.79,0.00022898,2]
[313168093,1706861441566,-4628.97045049,0.00022899,2]
[313168094,1706861441581,-5252.94344951,0.00022899,2]
[313168095,1706861441590,-713.48,0.00022899,2]
[313168096,1706861441600,-1708.498,0.0002295,2]
[313168098,1706861441609,-733.75,0.00022998,2]
[313168100,1706861441619,-5213.83456175,0.00022999,2]
[313168101,1706861441631,-862.54683674,0.00022999,2]
[313168102,1706861441643,-804.29,0.00022999,2]
[313168103,1706861441654,-563.36498808,0.00022999,2]
[313168104,1706861441666,-536.594,0.00022999,2]
[313168105,1706861441681,-647.13520775,0.00022999,2]
[313168121,1706861442977,-1026.13849919,0.00022999,2]
[313168122,1706861443034,-1612.96914962,0.00022999,2]
[313168125,1706861443145,-1267.53629767,0.00022999,2]
[313168126,1706861443156,-2265.54595803,0.00022999,2]
[313168127,1706861444730,-113855.02907349,0.00022999,2]
[313168129,1706861446163,-139299.03196739,0.00022999,2]
[313168135,1706861860901,-150.0,0.00022501,2]
[313168136,1706862083373,156.20997547,0.00020697,2]
[313168140,1706862244068,210.0,0.00022,2]
[313168141,1706862265055,1107.38908839,0.00020697,2]
[313168142,1706862266516,650.60910191,0.00020594,2]
[313168143,1706862291039,168.68331054,0.00020697,2]
[313168156,1706862632092,-500.0,0.00022538,2]
[313168157,1706862632101,-1044.17191607,0.00022539,2]
[313168158,1706862632110,-1093.36275097,0.00022539,2]
[313168159,1706862632149,-14.65641638,0.00022539,2]
[313168160,1706862632158,-277.99546696,0.00022768,2]
[313168161,1706862632170,-2209.59114363,0.00022768,2]
[313168162,1706862632211,-190.05249713,0.00022768,2]
[313168163,1706862632221,-150.0,0.00022996,2]
[313168164,1706862632230,-9.94750287,0.00022997,2]
[313168165,1706862632275,-329.66712704,0.00022997,2]
[313168166,1706862632285,-850.0,0.00022997,2]